Department family,Entity,Date,Expense type,Expense area,Supplier,Transaction number,Amount
Department of Health,Leicestershire Partnership NHS Trust,03/02/20,Nurse - Band 6 -Agency,Adult City East CMHT - Merlyn Vaz,HCL NURSING,HNSI0000277,5449.06
Department of Health,Leicestershire Partnership NHS Trust,03/02/20,Nurse - Band 6 -Agency,Adult County Charnwood CMHT - Loughborough Base,HCL NURSING,HNSI0000277,772.21
Department of Health,Leicestershire Partnership NHS Trust,03/02/20,Nurse - Band 6 -Agency,Adult County North West Leicestershire CMHT,HCL NURSING,HNSI0000277,1069.88
Department of Health,Leicestershire Partnership NHS Trust,03/02/20,Nurse - Band 6 -Agency,Adult County West Leicestershire CMHT,HCL NURSING,HNSI0000277,855.90
Department of Health,Leicestershire Partnership NHS Trust,03/02/20,NURSE - BAND 2 - AGENCY,Agnes Unit Management,HCL NURSING,HNSI0000277,2090.13
Department of Health,Leicestershire Partnership NHS Trust,03/02/20,NURSE - BAND 5 - AGENCY,Agnes Unit Management,HCL NURSING,HNSI0000277,833.52
Department of Health,Leicestershire Partnership NHS Trust,03/02/20,NURSE - BAND 5 - AGENCY,Ashby Ward (Bradgate Unit),HCL NURSING,HNSI0000277,659.63
Department of Health,Leicestershire Partnership NHS Trust,03/02/20,Nurse - Band 6 -Agency,Assertive Outreach Services,HCL NURSING,HNSI0000277,1069.88
Department of Health,Leicestershire Partnership NHS Trust,03/02/20,NURSE - BAND 2 - AGENCY,Aston Ward (Bradgate Unit),HCL NURSING,HNSI0000277,175.46
Department of Health,Leicestershire Partnership NHS Trust,03/02/20,NURSE - BAND 5 - AGENCY,Aston Ward (Bradgate Unit),HCL NURSING,HNSI0000277,989.44
Department of Health,Leicestershire Partnership NHS Trust,03/02/20,NURSE - BAND 2 - AGENCY,Belvoir Psychiatric Intensive Care Unit,HCL NURSING,HNSI0000277,2519.19
Department of Health,Leicestershire Partnership NHS Trust,03/02/20,NURSE - BAND 5 - AGENCY,Belvoir Psychiatric Intensive Care Unit,HCL NURSING,HNSI0000277,756.51
Department of Health,Leicestershire Partnership NHS Trust,03/02/20,NURSE - BAND 2 - AGENCY,Bosworth Ward - Bradgate Unit,HCL NURSING,HNSI0000277,168.41
Department of Health,Leicestershire Partnership NHS Trust,03/02/20,NURSE - BAND 5 - AGENCY,Bosworth Ward - Bradgate Unit,HCL NURSING,HNSI0000277,329.81
Department of Health,Leicestershire Partnership NHS Trust,03/02/20,Nurse - Band 6 -Agency,Crisis Resolution,HCL NURSING,HNSI0000277,3925.76
Department of Health,Leicestershire Partnership NHS Trust,03/02/20,NURSE - BAND 2 - AGENCY,Griffin Ward (HPC),HCL NURSING,HNSI0000277,545.12
Department of Health,Leicestershire Partnership NHS Trust,03/02/20,NURSE - BAND 5 - AGENCY,Griffin Ward (HPC),HCL NURSING,HNSI0000277,3641.38
Department of Health,Leicestershire Partnership NHS Trust,03/02/20,NURSE - BAND 2 - AGENCY,Heather Ward,HCL NURSING,HNSI0000277,541.80
Department of Health,Leicestershire Partnership NHS Trust,03/02/20,NURSE - BAND 5 - AGENCY,Heather Ward,HCL NURSING,HNSI0000277,1624.76
Department of Health,Leicestershire Partnership NHS Trust,03/02/20,Nurse - Band 6 -Agency,Leicestershire Psych-oncology Service,HCL NURSING,HNSI0000277,470.60
Department of Health,Leicestershire Partnership NHS Trust,03/02/20,Nurse - Band 6 -Agency,Mental Health Triage Team,HCL NURSING,HNSI0000277,2410.77
Department of Health,Leicestershire Partnership NHS Trust,03/02/20,NURSE - BAND 2 - AGENCY,Mill Lodge,HCL NURSING,HNSI0000277,261.16
Department of Health,Leicestershire Partnership NHS Trust,03/02/20,NURSE - BAND 5 - AGENCY,Mill Lodge,HCL NURSING,HNSI0000277,287.92
Department of Health,Leicestershire Partnership NHS Trust,03/02/20,NURSE - BAND 2 - AGENCY,Stewart House,HCL NURSING,HNSI0000277,196.76
Department of Health,Leicestershire Partnership NHS Trust,03/02/20,NURSE - BAND 5 - AGENCY,Thornton Ward - Bradgate Unit,HCL NURSING,HNSI0000277,266.74
Department of Health,Leicestershire Partnership NHS Trust,03/02/20,NURSE - BAND 2 - AGENCY,Watermead Ward (Bradgate Unit),HCL NURSING,HNSI0000277,223.60
Department of Health,Leicestershire Partnership NHS Trust,03/02/20,NURSE - BAND 5 - AGENCY,Watermead Ward (Bradgate Unit),HCL NURSING,HNSI0000277,1337.31
Department of Health,Leicestershire Partnership NHS Trust,03/02/20,Crs_NHS_LT1y -Resus Inventory Supplied.,Balance Sheet Collection,SUPPLY CHAIN CO LTD,1010217812,54968.13
Department of Health,Leicestershire Partnership NHS Trust,03/02/20,GP IT Expenditure,Area Team,DELL COMPUTERS,7402588691,34680.00
Department of Health,Leicestershire Partnership NHS Trust,03/02/20,GP IT Expenditure,Area Team,DELL COMPUTERS,7402588690,34680.00
Department of Health,Leicestershire Partnership NHS Trust,03/02/20,GP IT Expenditure,Area Team,DELL COMPUTERS,7402590600,34680.00
Department of Health,Leicestershire Partnership NHS Trust,03/02/20,GP IT Expenditure,Area Team,DELL COMPUTERS,7402590772,34680.00
Department of Health,Leicestershire Partnership NHS Trust,03/02/20,GP IT Expenditure,Area Team,DELL COMPUTERS,7402590771,34680.00
Department of Health,Leicestershire Partnership NHS Trust,03/02/20,GP IT Expenditure,Area Team,DELL COMPUTERS,7402590139,34680.00
Department of Health,Leicestershire Partnership NHS Trust,03/02/20,Occupational Health,HR Operations,UHL NHS TRUST (RWE),L0238222,26622.00
Department of Health,Leicestershire Partnership NHS Trust,04/02/20,Leased / Hired Vehicles,Assertive Outreach Services,AUTOMOTIVE LEASING LTD,506363131,5.00
Department of Health,Leicestershire Partnership NHS Trust,04/02/20,Prep_ LT1y -Prepayments Lease Cars,Balance Sheet Collection,AUTOMOTIVE LEASING LTD,506363131,43100.12
Department of Health,Leicestershire Partnership NHS Trust,04/02/20,Trade_Drs_LT1y -Charitable  Funds Contra Account,Balance Sheet Collection,AUTOMOTIVE LEASING LTD,506363131,15.00
Department of Health,Leicestershire Partnership NHS Trust,04/02/20,Trade_Drs_LT1y -Lease Cars Invoicing Contrl Ac.,Balance Sheet Collection,AUTOMOTIVE LEASING LTD,506363131,2174.89
Department of Health,Leicestershire Partnership NHS Trust,04/02/20,Leased / Hired Vehicles,CHS Community Management,AUTOMOTIVE LEASING LTD,506363131,5.00
Department of Health,Leicestershire Partnership NHS Trust,04/02/20,Leased / Hired Vehicles,CHS IP Medical Cover,AUTOMOTIVE LEASING LTD,506363131,495.56
Department of Health,Leicestershire Partnership NHS Trust,04/02/20,Leased / Hired Vehicles,CQUINN 5,AUTOMOTIVE LEASING LTD,506363131,38.02
Department of Health,Leicestershire Partnership NHS Trust,04/02/20,Leased / Hired Vehicles,Children's Physiotherapy,AUTOMOTIVE LEASING LTD,506363131,3.25
Department of Health,Leicestershire Partnership NHS Trust,04/02/20,Leased / Hired Vehicles,City East CMHT MHSOP,AUTOMOTIVE LEASING LTD,506363131,5.00
Department of Health,Leicestershire Partnership NHS Trust,04/02/20,Leased / Hired Vehicles,City Planned Care - East,AUTOMOTIVE LEASING LTD,506363131,154.04
Department of Health,Leicestershire Partnership NHS Trust,04/02/20,Leased / Hired Vehicles,Countywide Falls Service,AUTOMOTIVE LEASING LTD,506363131,388.40
Department of Health,Leicestershire Partnership NHS Trust,04/02/20,Leased / Hired Vehicles,"East Planned Care - Melton,Syston,Rut - Therapy",AUTOMOTIVE LEASING LTD,506363131,8.72
Department of Health,Leicestershire Partnership NHS Trust,04/02/20,Leased / Hired Vehicles,"East Planned Care - Oadby,Wigston,Harb – Therapy",AUTOMOTIVE LEASING LTD,506363131,5.00
Department of Health,Leicestershire Partnership NHS Trust,04/02/20,Leased / Hired Vehicles,Heart Failure Service,AUTOMOTIVE LEASING LTD,506363131,5.00
Department of Health,Leicestershire Partnership NHS Trust,04/02/20,Leased / Hired Vehicles,Pharmacy,AUTOMOTIVE LEASING LTD,506363131,145.00
Department of Health,Leicestershire Partnership NHS Trust,04/02/20,Leased / Hired Vehicles,School Age Immunisation and Vaccinations,AUTOMOTIVE LEASING LTD,506363131,1029.92
Department of Health,Leicestershire Partnership NHS Trust,04/02/20,Leased / Hired Vehicles,Support Services (Learn Dis),AUTOMOTIVE LEASING LTD,506363131,20.00
Department of Health,Leicestershire Partnership NHS Trust,04/02/20,Leased / Hired Vehicles,West Planned Care - NWL Hub,AUTOMOTIVE LEASING LTD,506363131,5.00
Department of Health,Leicestershire Partnership NHS Trust,04/02/20,Leased / Hired Vehicles,Willows Unit,AUTOMOTIVE LEASING LTD,506363131,246.69
Department of Health,Leicestershire Partnership NHS Trust,04/02/20,Other Non-Medical Supplies & Services,Inter Unit I & E Distribution,UHL NHS TRUST (RWE),L0238225,176301.00
Department of Health,Leicestershire Partnership NHS Trust,04/02/20,Rent,"Syston Health Centre (New Building) (P127, LPT)",PHIP (5) LIMITED,LINV509609,37500.00
Department of Health,Leicestershire Partnership NHS Trust,04/02/20,GP IT Expenditure,Area Team,DELL COMPUTERS,7402590770,34680.00
Department of Health,Leicestershire Partnership NHS Trust,04/02/20,GP IT Expenditure,Area Team,DELL COMPUTERS,7402590461,34680.00
Department of Health,Leicestershire Partnership NHS Trust,05/02/20,NURSE - BAND 5 - AGENCY,Ashby Ward (Bradgate Unit),HCL NURSING,HNSCM000159,-58.60
Department of Health,Leicestershire Partnership NHS Trust,05/02/20,NURSE - BAND 5 - AGENCY,City Planned Care - West,HCL NURSING,HNSCM000159,-104697.22
Department of Health,Leicestershire Partnership NHS Trust,05/02/20,NURSE - BAND 5 - AGENCY,City Planned Care - West,HCL NURSING,HNUR5760042,58296.52
Department of Health,Leicestershire Partnership NHS Trust,05/02/20,NURSE - BAND 5 - AGENCY,City Planned Care - West,HCL NURSING,HNUR5760041,39257.45
Department of Health,Leicestershire Partnership NHS Trust,05/02/20,HR / Payroll Services,HR Employment Services,LINCOLNSHIRE PART NHSFT(RP7),2000020370,29360.93
Department of Health,Leicestershire Partnership NHS Trust,06/02/20,Dilapidations,Balance Sheet Collection,RAYNSWAY PROPERTIES LTD,INV-1383,89542.47
Department of Health,Leicestershire Partnership NHS Trust,07/02/20,External Data Processing / Storage,Records & information Governance,H COATES LTD/TA C&V DATA,4000204,27551.33
Department of Health,Leicestershire Partnership NHS Trust,07/02/20,Unitary Payment,"The Agnes Unit (AKA Assessment and Treatment Centre) (P85, LPT)",ARDEN PARTNERSHIP (LEICESTER),SI0041,116258.77
Department of Health,Leicestershire Partnership NHS Trust,10/02/20,Computer Hardware,HIS Programme & Change,DELL COMPUTERS,7402590462,26308.80
Department of Health,Leicestershire Partnership NHS Trust,10/02/20,Crs_NHS_LT1y -Resus Inventory Supplied.,Balance Sheet Collection,SUPPLY CHAIN CO LTD,1010222272,27602.58
Department of Health,Leicestershire Partnership NHS Trust,10/02/20,GP IT Expenditure,Area Team,DELL COMPUTERS,7402590138,34680.00
Department of Health,Leicestershire Partnership NHS Trust,10/02/20,Computer Hardware,HIS Programme & Change,DELL COMPUTERS,7402590773,28188.00
Department of Health,Leicestershire Partnership NHS Trust,10/02/20,WIP Project Not in BS - Buildings excl Dwellings,Work in Progress,INTERSERVE CONSTRUCTION LTD,VEM55206,40476.78
Department of Health,Leicestershire Partnership NHS Trust,10/02/20,Computer License  Fees,CHS - Head of Nursing,SOFTCAT PLC,INV02487858,46368.10
Department of Health,Leicestershire Partnership NHS Trust,11/02/20,SPECIALITY TRAINING 4-6 (ST 4-6),Medical Trainees,UHL NHS TRUST (RWE),L0238350,37677.00
Department of Health,Leicestershire Partnership NHS Trust,12/02/20,NURSE - BAND 2 - AGENCY,Beechwood Ward,HCL NURSING,HNSI0000278,211.93
Department of Health,Leicestershire Partnership NHS Trust,12/02/20,NURSE - BAND 5 - AGENCY,Beechwood Ward,HCL NURSING,HNSI0000278,2326.82
Department of Health,Leicestershire Partnership NHS Trust,12/02/20,NURSE - BAND 5 - AGENCY,City Planned Care - East,HCL NURSING,HNSI0000278,21139.27
Department of Health,Leicestershire Partnership NHS Trust,12/02/20,NURSE - BAND 5 - AGENCY,City Planned Care - West,HCL NURSING,HNSI0000278,10461.36
Department of Health,Leicestershire Partnership NHS Trust,12/02/20,Nurse - Band 6 -Agency,City West CMHT MHSOP,HCL NURSING,HNSI0000278,1925.78
Department of Health,Leicestershire Partnership NHS Trust,12/02/20,NURSE - BAND 2 - AGENCY,Clarendon Ward,HCL NURSING,HNSI0000278,168.41
Department of Health,Leicestershire Partnership NHS Trust,12/02/20,NURSE - BAND 5 - AGENCY,Clarendon Ward,HCL NURSING,HNSI0000278,1336.18
Department of Health,Leicestershire Partnership NHS Trust,12/02/20,NURSE - BAND 2 - AGENCY,Coalville Snibston Ward,HCL NURSING,HNSI0000278,113.77
Department of Health,Leicestershire Partnership NHS Trust,12/02/20,NURSE - BAND 2 - AGENCY,Coalville Ward 2,HCL NURSING,HNSI0000278,130.54
Department of Health,Leicestershire Partnership NHS Trust,12/02/20,NURSE - BAND 5 - AGENCY,Coalville Ward 2,HCL NURSING,HNSI0000278,726.82
Department of Health,Leicestershire Partnership NHS Trust,12/02/20,NURSE - BAND 2 - AGENCY,Coleman Ward,HCL NURSING,HNSI0000278,218.87
Department of Health,Leicestershire Partnership NHS Trust,12/02/20,NURSE - BAND 5 - AGENCY,Coleman Ward,HCL NURSING,HNSI0000278,1268.92
Department of Health,Leicestershire Partnership NHS Trust,12/02/20,NURSE - BAND 5 - AGENCY,Dalgliesh Ward,HCL NURSING,HNSI0000278,2257.53
Department of Health,Leicestershire Partnership NHS Trust,12/02/20,NURSE - BAND 5 - AGENCY,"East Planned Care - Oadby,Wigston & Harborough",HCL NURSING,HNSI0000278,5813.71
Department of Health,Leicestershire Partnership NHS Trust,12/02/20,NURSE - BAND 5 - AGENCY,Fielding Palmer Nursing,HCL NURSING,HNSI0000278,810.73
Department of Health,Leicestershire Partnership NHS Trust,12/02/20,NURSE - BAND 2 - AGENCY,Gwendolen Ward,HCL NURSING,HNSI0000278,824.40
Department of Health,Leicestershire Partnership NHS Trust,12/02/20,NURSE - BAND 5 - AGENCY,Gwendolen Ward,HCL NURSING,HNSI0000278,2185.25
Department of Health,Leicestershire Partnership NHS Trust,12/02/20,NURSE - BAND 5 - AGENCY,H&B Comm Hosp East Ward,HCL NURSING,HNSI0000278,329.81
Department of Health,Leicestershire Partnership NHS Trust,12/02/20,NURSE - BAND 2 - AGENCY,H&B Comm Hosp North Ward,HCL NURSING,HNSI0000278,1332.38
Department of Health,Leicestershire Partnership NHS Trust,12/02/20,NURSE - BAND 5 - AGENCY,H&B Comm Hosp North Ward,HCL NURSING,HNSI0000278,1025.38
Department of Health,Leicestershire Partnership NHS Trust,12/02/20,NURSE - BAND 2 - AGENCY,Kirby Ward,HCL NURSING,HNSI0000278,442.20
Department of Health,Leicestershire Partnership NHS Trust,12/02/20,NURSE - BAND 2 - AGENCY,Lough Swithland Ward,HCL NURSING,HNSI0000278,392.14
Department of Health,Leicestershire Partnership NHS Trust,12/02/20,NURSE - BAND 5 - AGENCY,Lough Swithland Ward,HCL NURSING,HNSI0000278,1130.52
Department of Health,Leicestershire Partnership NHS Trust,12/02/20,NURSE - BAND 2 - AGENCY,Rutland Ward Nursing,HCL NURSING,HNSI0000278,573.44
Department of Health,Leicestershire Partnership NHS Trust,12/02/20,NURSE - BAND 5 - AGENCY,Rutland Ward Nursing,HCL NURSING,HNSI0000278,823.10
Department of Health,Leicestershire Partnership NHS Trust,12/02/20,NURSE - BAND 2 - AGENCY,St Lukes Stroke Ward,HCL NURSING,HNSI0000278,987.57
Department of Health,Leicestershire Partnership NHS Trust,12/02/20,NURSE - BAND 5 - AGENCY,St Lukes Stroke Ward,HCL NURSING,HNSI0000278,1591.61
Department of Health,Leicestershire Partnership NHS Trust,12/02/20,NURSE - BAND 2 - AGENCY,St Lukes Ward 3,HCL NURSING,HNSI0000278,146.84
Department of Health,Leicestershire Partnership NHS Trust,12/02/20,NURSE - BAND 5 - AGENCY,St Lukes Ward 3,HCL NURSING,HNSI0000278,3521.31
Department of Health,Leicestershire Partnership NHS Trust,12/02/20,NURSE - BAND 2 - AGENCY,Welford Ward,HCL NURSING,HNSI0000278,182.01
Department of Health,Leicestershire Partnership NHS Trust,12/02/20,NURSE - BAND 2 - AGENCY,Beechwood Ward,HCL NURSING,HNSI0000283,799.99
Department of Health,Leicestershire Partnership NHS Trust,12/02/20,NURSE - BAND 5 - AGENCY,Beechwood Ward,HCL NURSING,HNSI0000283,1823.74
Department of Health,Leicestershire Partnership NHS Trust,12/02/20,NURSE - BAND 5 - AGENCY,City Planned Care - East,HCL NURSING,HNSI0000283,21758.10
Department of Health,Leicestershire Partnership NHS Trust,12/02/20,NURSE - BAND 5 - AGENCY,City Planned Care - West,HCL NURSING,HNSI0000283,7299.65
Department of Health,Leicestershire Partnership NHS Trust,12/02/20,Nurse - Band 6 -Agency,City West CMHT MHSOP,HCL NURSING,HNSI0000283,2116.04
Department of Health,Leicestershire Partnership NHS Trust,12/02/20,NURSE - BAND 5 - AGENCY,Clarendon Ward,HCL NURSING,HNSI0000283,1168.14
Department of Health,Leicestershire Partnership NHS Trust,12/02/20,NURSE - BAND 2 - AGENCY,Coalville Snibston Ward,HCL NURSING,HNSI0000283,384.37
Department of Health,Leicestershire Partnership NHS Trust,12/02/20,NURSE - BAND 2 - AGENCY,Coalville Ward 2,HCL NURSING,HNSI0000283,213.54
Department of Health,Leicestershire Partnership NHS Trust,12/02/20,NURSE - BAND 5 - AGENCY,Coalville Ward 2,HCL NURSING,HNSI0000283,1585.13
Department of Health,Leicestershire Partnership NHS Trust,12/02/20,NURSE - BAND 5 - AGENCY,Coleman Ward,HCL NURSING,HNSI0000283,917.87
Department of Health,Leicestershire Partnership NHS Trust,12/02/20,NURSE - BAND 5 - AGENCY,Dalgliesh Ward,HCL NURSING,HNSI0000283,907.79
Department of Health,Leicestershire Partnership NHS Trust,12/02/20,NURSE - BAND 5 - AGENCY,"East Planned Care - Oadby,Wigston & Harborough",HCL NURSING,HNSI0000283,3394.02
Department of Health,Leicestershire Partnership NHS Trust,12/02/20,NURSE - BAND 2 - AGENCY,Fielding Palmer Nursing,HCL NURSING,HNSI0000283,106.77
Department of Health,Leicestershire Partnership NHS Trust,12/02/20,NURSE - BAND 5 - AGENCY,Fielding Palmer Nursing,HCL NURSING,HNSI0000283,1486.60
Department of Health,Leicestershire Partnership NHS Trust,12/02/20,NURSE - BAND 2 - AGENCY,Gwendolen Ward,HCL NURSING,HNSI0000283,484.74
Department of Health,Leicestershire Partnership NHS Trust,12/02/20,NURSE - BAND 5 - AGENCY,Gwendolen Ward,HCL NURSING,HNSI0000283,1595.16
Department of Health,Leicestershire Partnership NHS Trust,12/02/20,NURSE - BAND 2 - AGENCY,H&B Comm Hosp East Ward,HCL NURSING,HNSI0000283,1113.73
Department of Health,Leicestershire Partnership NHS Trust,12/02/20,NURSE - BAND 5 - AGENCY,H&B Comm Hosp East Ward,HCL NURSING,HNSI0000283,610.85
Department of Health,Leicestershire Partnership NHS Trust,12/02/20,NURSE - BAND 2 - AGENCY,H&B Comm Hosp North Ward,HCL NURSING,HNSI0000283,1940.05
Department of Health,Leicestershire Partnership NHS Trust,12/02/20,NURSE - BAND 5 - AGENCY,H&B Comm Hosp North Ward,HCL NURSING,HNSI0000283,1869.86
Department of Health,Leicestershire Partnership NHS Trust,12/02/20,NURSE - BAND 2 - AGENCY,Kirby Ward,HCL NURSING,HNSI0000283,1085.59
Department of Health,Leicestershire Partnership NHS Trust,12/02/20,NURSE - BAND 5 - AGENCY,Lough Swithland Ward,HCL NURSING,HNSI0000283,414.64
Department of Health,Leicestershire Partnership NHS Trust,12/02/20,NURSE - BAND 5 - AGENCY,Rutland Ward Nursing,HCL NURSING,HNSI0000283,827.34
Department of Health,Leicestershire Partnership NHS Trust,12/02/20,NURSE - BAND 2 - AGENCY,St Lukes Stroke Ward,HCL NURSING,HNSI0000283,176.21
Department of Health,Leicestershire Partnership NHS Trust,12/02/20,NURSE - BAND 5 - AGENCY,St Lukes Stroke Ward,HCL NURSING,HNSI0000283,517.56
Department of Health,Leicestershire Partnership NHS Trust,12/02/20,NURSE - BAND 2 - AGENCY,St Lukes Ward 3,HCL NURSING,HNSI0000283,318.70
Department of Health,Leicestershire Partnership NHS Trust,12/02/20,NURSE - BAND 5 - AGENCY,St Lukes Ward 3,HCL NURSING,HNSI0000283,2200.36
Department of Health,Leicestershire Partnership NHS Trust,12/02/20,NURSE - BAND 5 - AGENCY,Welford Ward,HCL NURSING,HNSI0000283,302.58
Department of Health,Leicestershire Partnership NHS Trust,12/02/20,WIP Project Not in BS - Information Technology,Work in Progress,XMA COMPUTER PRODUCTS,KV80557,33355.20
Department of Health,Leicestershire Partnership NHS Trust,12/02/20,Payroll Deductions -Salary Sacrifice Cars Scheme,Balance Sheet Collection,TUSKER,25473,33396.96
Department of Health,Leicestershire Partnership NHS Trust,13/02/20,Payroll Deductions - Kiddi Vouchers,Balance Sheet Collection,WIDER PLAN LTD,5157903,33221.63
Department of Health,Leicestershire Partnership NHS Trust,14/02/20,Computer Hardware,HIS External Recharge,TRUSTMARQUE SOLUTIONS LTD,2295350,44871.84
Department of Health,Leicestershire Partnership NHS Trust,17/02/20,Crs_NHS_LT1y -Resus Inventory Supplied.,Balance Sheet Collection,SUPPLY CHAIN CO LTD,1010226568,25310.53
Department of Health,Leicestershire Partnership NHS Trust,17/02/20,Mobile Telephone Rental / Calls,Specific Unit Budget Reserves,VODAFONE CORPORATE LTD,93951958,39069.43
Department of Health,Leicestershire Partnership NHS Trust,18/02/20,Med GP Trainees,Medical Trainees,ST.HELENS & KNOWSLEY NHS TRUST,16793396,60000.00
Department of Health,Leicestershire Partnership NHS Trust,18/02/20,Rent,"St Peters Health Center (Part 1st and 2nd floors) (P66, LPT)",LEICESTER LIFT CO,LEP1/S0432,26775.80
Department of Health,Leicestershire Partnership NHS Trust,18/02/20,Rent,"St Peters Health Center (Part 1st and 2nd floors) (P66, LPT)",LEICESTER LIFT CO,LEP1/S0431,26775.80
Department of Health,Leicestershire Partnership NHS Trust,18/02/20,Rent,"St Peters Health Center (Part 1st and 2nd floors) (P66, LPT)",LEICESTER LIFT CO,LEP1/S0430,133879.00
Department of Health,Leicestershire Partnership NHS Trust,18/02/20,Internal Printing (machines and ink),Estates & Facilities Central,LEXMARK INTERNATIONAL LTD,900650007695,36478.03
Department of Health,Leicestershire Partnership NHS Trust,19/02/20,WIP Project Not in BS - Buildings excl Dwellings,Work in Progress,INTERSERVE CONSTRUCTION LTD,VEM55212,551977.48
Department of Health,Leicestershire Partnership NHS Trust,19/02/20,Drugs,Adult City Drugs,JANSSEN-CILAG LTD,930614872,10583.01
Department of Health,Leicestershire Partnership NHS Trust,19/02/20,Drugs,Adult County Drugs,JANSSEN-CILAG LTD,930614872,15874.52
Department of Health,Leicestershire Partnership NHS Trust,20/02/20,NURSE - BAND 2 - AGENCY,Access Bed Management Team,HCL NURSING,HNSI0000284,205.70
Department of Health,Leicestershire Partnership NHS Trust,20/02/20,Nurse - Band 6 -Agency,Adult City East CMHT - Merlyn Vaz,HCL NURSING,HNSI0000284,3359.01
Department of Health,Leicestershire Partnership NHS Trust,20/02/20,Nurse - Band 6 -Agency,Adult County Charnwood CMHT - Loughborough Base,HCL NURSING,HNSI0000284,2139.75
Department of Health,Leicestershire Partnership NHS Trust,20/02/20,Nurse - Band 6 -Agency,Adult County North West Leicestershire CMHT,HCL NURSING,HNSI0000284,615.54
Department of Health,Leicestershire Partnership NHS Trust,20/02/20,Nurse - Band 6 -Agency,Adult County West Leicestershire CMHT,HCL NURSING,HNSI0000284,2139.75
Department of Health,Leicestershire Partnership NHS Trust,20/02/20,NURSE - BAND 2 - AGENCY,Agnes Unit Management,HCL NURSING,HNSI0000284,1420.39
Department of Health,Leicestershire Partnership NHS Trust,20/02/20,NURSE - BAND 5 - AGENCY,Agnes Unit Management,HCL NURSING,HNSI0000284,298.05
Department of Health,Leicestershire Partnership NHS Trust,20/02/20,NURSE - BAND 2 - AGENCY,Ashby Ward (Bradgate Unit),HCL NURSING,HNSI0000284,168.41
Department of Health,Leicestershire Partnership NHS Trust,20/02/20,NURSE - BAND 5 - AGENCY,Ashby Ward (Bradgate Unit),HCL NURSING,HNSI0000284,999.59
Department of Health,Leicestershire Partnership NHS Trust,20/02/20,NURSE - BAND 2 - AGENCY,Aston Ward (Bradgate Unit),HCL NURSING,HNSI0000284,268.21
Department of Health,Leicestershire Partnership NHS Trust,20/02/20,NURSE - BAND 5 - AGENCY,Aston Ward (Bradgate Unit),HCL NURSING,HNSI0000284,392.89
Department of Health,Leicestershire Partnership NHS Trust,20/02/20,NURSE - BAND 2 - AGENCY,Belvoir Psychiatric Intensive Care Unit,HCL NURSING,HNSI0000284,1483.66
Department of Health,Leicestershire Partnership NHS Trust,20/02/20,NURSE - BAND 5 - AGENCY,Belvoir Psychiatric Intensive Care Unit,HCL NURSING,HNSI0000284,659.63
Department of Health,Leicestershire Partnership NHS Trust,20/02/20,NURSE - BAND 5 - AGENCY,Bosworth Ward - Bradgate Unit,HCL NURSING,HNSI0000284,307.74
Department of Health,Leicestershire Partnership NHS Trust,20/02/20,Nurse - Band 6 -Agency,Crisis Resolution,HCL NURSING,HNSI0000284,3194.89
Department of Health,Leicestershire Partnership NHS Trust,20/02/20,NURSE - BAND 2 - AGENCY,Griffin Ward (HPC),HCL NURSING,HNSI0000284,924.59
Department of Health,Leicestershire Partnership NHS Trust,20/02/20,NURSE - BAND 5 - AGENCY,Griffin Ward (HPC),HCL NURSING,HNSI0000284,4432.34
Department of Health,Leicestershire Partnership NHS Trust,20/02/20,NURSE - BAND 2 - AGENCY,Heather Ward,HCL NURSING,HNSI0000284,884.18
Department of Health,Leicestershire Partnership NHS Trust,20/02/20,NURSE - BAND 5 - AGENCY,Heather Ward,HCL NURSING,HNSI0000284,3154.50
Department of Health,Leicestershire Partnership NHS Trust,20/02/20,Nurse - Band 6 -Agency,Mental Health Triage Team,HCL NURSING,HNSI0000284,804.04
Department of Health,Leicestershire Partnership NHS Trust,20/02/20,NURSE - BAND 5 - AGENCY,Mill Lodge,HCL NURSING,HNSI0000284,287.92
Department of Health,Leicestershire Partnership NHS Trust,20/02/20,NURSE - BAND 2 - AGENCY,Watermead Ward (Bradgate Unit),HCL NURSING,HNSI0000284,731.28
Department of Health,Leicestershire Partnership NHS Trust,20/02/20,NURSE - BAND 5 - AGENCY,Watermead Ward (Bradgate Unit),HCL NURSING,HNSI0000284,1102.10
Department of Health,Leicestershire Partnership NHS Trust,20/02/20,Med Trainees - FY1,Medical Trainees,UHL NHS TRUST (RWE),L0238716,29429.51
Department of Health,Leicestershire Partnership NHS Trust,20/02/20,UHL Facilities Management SLA,Estates Central Invoices To Recharge,UHL NHS TRUST (RWE),L0238729,827106.58
Department of Health,Leicestershire Partnership NHS Trust,20/02/20,Nurse - Band 6 -Agency,Adult City East CMHT - Merlyn Vaz,HCL NURSING,HNSI0000288,2045.64
Department of Health,Leicestershire Partnership NHS Trust,20/02/20,Nurse - Band 6 -Agency,Adult County North West Leicestershire CMHT,HCL NURSING,HNSI0000288,2139.75
Department of Health,Leicestershire Partnership NHS Trust,20/02/20,NURSE - BAND 2 - AGENCY,Agnes Unit Management,HCL NURSING,HNSI0000288,1334.90
Department of Health,Leicestershire Partnership NHS Trust,20/02/20,NURSE - BAND 5 - AGENCY,Agnes Unit Management,HCL NURSING,HNSI0000288,298.08
Department of Health,Leicestershire Partnership NHS Trust,20/02/20,NURSE - BAND 5 - AGENCY,Ashby Ward (Bradgate Unit),HCL NURSING,HNSI0000288,722.70
Department of Health,Leicestershire Partnership NHS Trust,20/02/20,Nurse - Band 6 -Agency,Assertive Outreach Services,HCL NURSING,HNSI0000288,2139.75
Department of Health,Leicestershire Partnership NHS Trust,20/02/20,NURSE - BAND 2 - AGENCY,Aston Ward (Bradgate Unit),HCL NURSING,HNSI0000288,698.81
Department of Health,Leicestershire Partnership NHS Trust,20/02/20,NURSE - BAND 5 - AGENCY,Aston Ward (Bradgate Unit),HCL NURSING,HNSI0000288,1080.71
Department of Health,Leicestershire Partnership NHS Trust,20/02/20,NURSE - BAND 2 - AGENCY,Belvoir Psychiatric Intensive Care Unit,HCL NURSING,HNSI0000288,2977.99
Department of Health,Leicestershire Partnership NHS Trust,20/02/20,NURSE - BAND 5 - AGENCY,Belvoir Psychiatric Intensive Care Unit,HCL NURSING,HNSI0000288,296.01
Department of Health,Leicestershire Partnership NHS Trust,20/02/20,NURSE - BAND 5 - AGENCY,Bosworth Ward - Bradgate Unit,HCL NURSING,HNSI0000288,329.81
Department of Health,Leicestershire Partnership NHS Trust,20/02/20,NURSE - BAND 2 - AGENCY,Cedar (Willows),HCL NURSING,HNSI0000288,277.94
Department of Health,Leicestershire Partnership NHS Trust,20/02/20,Nurse - Band 6 -Agency,Crisis Resolution,HCL NURSING,HNSI0000288,4490.36
Department of Health,Leicestershire Partnership NHS Trust,20/02/20,NURSE - BAND 2 - AGENCY,Griffin Ward (HPC),HCL NURSING,HNSI0000288,492.25
Department of Health,Leicestershire Partnership NHS Trust,20/02/20,NURSE - BAND 5 - AGENCY,Griffin Ward (HPC),HCL NURSING,HNSI0000288,3936.81
Department of Health,Leicestershire Partnership NHS Trust,20/02/20,NURSE - BAND 2 - AGENCY,Heather Ward,HCL NURSING,HNSI0000288,573.67
Department of Health,Leicestershire Partnership NHS Trust,20/02/20,Nurse - Band 6 -Agency,Leicestershire Psych-oncology Service,HCL NURSING,HNSI0000288,855.90
Department of Health,Leicestershire Partnership NHS Trust,20/02/20,Nurse - Band 6 -Agency,Mental Health Triage Team,HCL NURSING,HNSI0000288,4929.17
Department of Health,Leicestershire Partnership NHS Trust,20/02/20,NURSE - BAND 2 - AGENCY,Thornton Ward - Bradgate Unit,HCL NURSING,HNSI0000288,155.46
Department of Health,Leicestershire Partnership NHS Trust,20/02/20,NURSE - BAND 5 - AGENCY,Thornton Ward - Bradgate Unit,HCL NURSING,HNSI0000288,533.48
Department of Health,Leicestershire Partnership NHS Trust,20/02/20,NURSE - BAND 2 - AGENCY,Watermead Ward (Bradgate Unit),HCL NURSING,HNSI0000288,336.82
Department of Health,Leicestershire Partnership NHS Trust,20/02/20,NURSE - BAND 5 - AGENCY,Watermead Ward (Bradgate Unit),HCL NURSING,HNSI0000288,596.56
Department of Health,Leicestershire Partnership NHS Trust,20/02/20,NURSE - BAND 2 - AGENCY,Beechwood Ward,HCL NURSING,HNSI0000289,869.74
Department of Health,Leicestershire Partnership NHS Trust,20/02/20,NURSE - BAND 5 - AGENCY,Beechwood Ward,HCL NURSING,HNSI0000289,1142.51
Department of Health,Leicestershire Partnership NHS Trust,20/02/20,NURSE - BAND 5 - AGENCY,City Planned Care - East,HCL NURSING,HNSI0000289,15623.46
Department of Health,Leicestershire Partnership NHS Trust,20/02/20,NURSE - BAND 5 - AGENCY,City Planned Care - West,HCL NURSING,HNSI0000289,5923.67
Department of Health,Leicestershire Partnership NHS Trust,20/02/20,Nurse - Band 6 -Agency,City West CMHT MHSOP,HCL NURSING,HNSI0000289,1046.16
Department of Health,Leicestershire Partnership NHS Trust,20/02/20,NURSE - BAND 2 - AGENCY,Clarendon Ward,HCL NURSING,HNSI0000289,168.41
Department of Health,Leicestershire Partnership NHS Trust,20/02/20,NURSE - BAND 5 - AGENCY,Clarendon Ward,HCL NURSING,HNSI0000289,1231.65
Department of Health,Leicestershire Partnership NHS Trust,20/02/20,NURSE - BAND 5 - AGENCY,Coalville Ward 2,HCL NURSING,HNSI0000289,329.81
Department of Health,Leicestershire Partnership NHS Trust,20/02/20,NURSE - BAND 5 - AGENCY,Coleman Ward,HCL NURSING,HNSI0000289,605.16
Department of Health,Leicestershire Partnership NHS Trust,20/02/20,NURSE - BAND 5 - AGENCY,"East Planned Care - Oadby,Wigston & Harborough",HCL NURSING,HNSI0000289,3886.76
Department of Health,Leicestershire Partnership NHS Trust,20/02/20,NURSE - BAND 5 - AGENCY,Fielding Palmer Nursing,HCL NURSING,HNSI0000289,1199.10
Department of Health,Leicestershire Partnership NHS Trust,20/02/20,NURSE - BAND 2 - AGENCY,Gwendolen Ward,HCL NURSING,HNSI0000289,118.55
Department of Health,Leicestershire Partnership NHS Trust,20/02/20,NURSE - BAND 5 - AGENCY,Gwendolen Ward,HCL NURSING,HNSI0000289,1220.45
Department of Health,Leicestershire Partnership NHS Trust,20/02/20,NURSE - BAND 2 - AGENCY,H&B Comm Hosp East Ward,HCL NURSING,HNSI0000289,407.98
Department of Health,Leicestershire Partnership NHS Trust,20/02/20,NURSE - BAND 2 - AGENCY,H&B Comm Hosp North Ward,HCL NURSING,HNSI0000289,1737.26
Department of Health,Leicestershire Partnership NHS Trust,20/02/20,NURSE - BAND 5 - AGENCY,H&B Comm Hosp North Ward,HCL NURSING,HNSI0000289,517.56
Department of Health,Leicestershire Partnership NHS Trust,20/02/20,NURSE - BAND 2 - AGENCY,Kirby Ward,HCL NURSING,HNSI0000289,259.77
Department of Health,Leicestershire Partnership NHS Trust,20/02/20,NURSE - BAND 5 - AGENCY,Lough Swithland Ward,HCL NURSING,HNSI0000289,2161.13
Department of Health,Leicestershire Partnership NHS Trust,20/02/20,NURSE - BAND 5 - AGENCY,Rutland Ward Nursing,HCL NURSING,HNSI0000289,3279.84
Department of Health,Leicestershire Partnership NHS Trust,20/02/20,NURSE - BAND 2 - AGENCY,St Lukes Stroke Ward,HCL NURSING,HNSI0000289,947.65
Department of Health,Leicestershire Partnership NHS Trust,20/02/20,NURSE - BAND 5 - AGENCY,St Lukes Stroke Ward,HCL NURSING,HNSI0000289,35.86
Department of Health,Leicestershire Partnership NHS Trust,20/02/20,NURSE - BAND 2 - AGENCY,St Lukes Ward 3,HCL NURSING,HNSI0000289,106.77
Department of Health,Leicestershire Partnership NHS Trust,20/02/20,NURSE - BAND 5 - AGENCY,St Lukes Ward 3,HCL NURSING,HNSI0000289,1867.44
Department of Health,Leicestershire Partnership NHS Trust,20/02/20,NURSE - BAND 5 - AGENCY,Welford Ward,HCL NURSING,HNSI0000289,778.10
Department of Health,Leicestershire Partnership NHS Trust,21/02/20,Electricity,"Beaumont Leys Health Centre (P94, LPT)",BRITISH GAS (ELECTRIC),670044068/962543329,1325.63
Department of Health,Leicestershire Partnership NHS Trust,21/02/20,Electricity,Bridge Park Plaza - First Floor (LPT),BRITISH GAS (ELECTRIC),670044068/962543329,36.12
Department of Health,Leicestershire Partnership NHS Trust,21/02/20,Electricity,Bridge Park Road (Unit C18) (LPT),BRITISH GAS (ELECTRIC),670044068/962543329,544.98
Department of Health,Leicestershire Partnership NHS Trust,21/02/20,Electricity,"Bridge Park Road - Units 2 and 3 (P148, LPT)",BRITISH GAS (ELECTRIC),670044068/962543329,1649.70
Department of Health,Leicestershire Partnership NHS Trust,21/02/20,Electricity,"Coalville Health Centre (P121, LPT)",BRITISH GAS (ELECTRIC),670044068/962543329,1056.52
Department of Health,Leicestershire Partnership NHS Trust,21/02/20,Electricity,"DeMontfort House (P59, LPT)",BRITISH GAS (ELECTRIC),670044068/962543329,16.93
Department of Health,Leicestershire Partnership NHS Trust,21/02/20,Electricity,Estates & Facilities Central,BRITISH GAS (ELECTRIC),670044068/962543329,220.30
Department of Health,Leicestershire Partnership NHS Trust,21/02/20,Electricity,"Feilding Palmer Hospital (Lutterworth) (P131, LPT)",BRITISH GAS (ELECTRIC),670044068/962543329,1613.29
Department of Health,Leicestershire Partnership NHS Trust,21/02/20,Electricity,"Frith Cottages 3 & 4 (P36, LPT)",BRITISH GAS (ELECTRIC),670044068/962543329,503.88
Department of Health,Leicestershire Partnership NHS Trust,21/02/20,Electricity,"Hawthorne Centre - Coalville (P14, LPT)",BRITISH GAS (ELECTRIC),670044068/962543329,1080.58
Department of Health,Leicestershire Partnership NHS Trust,21/02/20,Electricity,"Hinckley and Bosworth Community Hospital (Sunnyside) (P133, LPT)",BRITISH GAS (ELECTRIC),670044068/962543329,896.09
Department of Health,Leicestershire Partnership NHS Trust,21/02/20,Electricity,"Hynca Lodge (P33, LPT)",BRITISH GAS (ELECTRIC),670044068/962543329,530.81
Department of Health,Leicestershire Partnership NHS Trust,21/02/20,Electricity,Mawson House (LPT),BRITISH GAS (ELECTRIC),670044068/962543329,429.30
Department of Health,Leicestershire Partnership NHS Trust,21/02/20,Electricity,"Mett Centre (P49, LPT)",BRITISH GAS (ELECTRIC),670044068/962543329,290.63
Department of Health,Leicestershire Partnership NHS Trust,21/02/20,Electricity,Modular Training Building,BRITISH GAS (ELECTRIC),670044068/962543329,628.14
Department of Health,Leicestershire Partnership NHS Trust,21/02/20,Electricity,"Paget House (P55, LPT)",BRITISH GAS (ELECTRIC),670044068/962543329,483.79
Department of Health,Leicestershire Partnership NHS Trust,21/02/20,Electricity,"Prince Philip House (P96, LPT)",BRITISH GAS (ELECTRIC),670044068/962543329,1701.60
Department of Health,Leicestershire Partnership NHS Trust,21/02/20,Electricity,Rothesay -  London Road 352A (LPT),BRITISH GAS (ELECTRIC),670044068/962543329,488.10
Department of Health,Leicestershire Partnership NHS Trust,21/02/20,Electricity,"Rubicon Close 3 (P56, LPT)",BRITISH GAS (ELECTRIC),670044068/962543329,176.63
Department of Health,Leicestershire Partnership NHS Trust,21/02/20,Electricity,"Rutland Memorial Hospital (P134, LPT)",BRITISH GAS (ELECTRIC),670044068/962543329,5516.29
Department of Health,Leicestershire Partnership NHS Trust,21/02/20,Electricity,"Shepshed Health Centre (P123, LPT)",BRITISH GAS (ELECTRIC),670044068/962543329,611.76
Department of Health,Leicestershire Partnership NHS Trust,21/02/20,Electricity,"Springfield Road Health Centre (P92, LPT)",BRITISH GAS (ELECTRIC),670044068/962543329,1308.61
Department of Health,Leicestershire Partnership NHS Trust,21/02/20,Electricity,"Swithland House - London Road 352 (P44, LPT)",BRITISH GAS (ELECTRIC),670044068/962543329,2828.26
Department of Health,Leicestershire Partnership NHS Trust,21/02/20,Electricity,"Westcotes Group -Westcotes House (P78, LPT)",BRITISH GAS (ELECTRIC),670044068/962543329,1224.17
Department of Health,Leicestershire Partnership NHS Trust,21/02/20,Electricity,"Winstanley Drive Health Centre (P8, LPT)",BRITISH GAS (ELECTRIC),670044068/962543329,548.33
Department of Health,Leicestershire Partnership NHS Trust,24/02/20,Pathology Service,Children Services Medical,UHL NHS TRUST (RWE),L0238775,12207.03
Department of Health,Leicestershire Partnership NHS Trust,24/02/20,Pathology Service,Inpatient Ward Management,UHL NHS TRUST (RWE),L0238775,6678.56
Department of Health,Leicestershire Partnership NHS Trust,24/02/20,Pathology Service,UHL Expenditure Contract,UHL NHS TRUST (RWE),L0238775,17117.57
Department of Health,Leicestershire Partnership NHS Trust,24/02/20,Crs_NHS_LT1y -Resus Inventory Supplied.,Balance Sheet Collection,SUPPLY CHAIN CO LTD,1010231999,29689.04
Department of Health,Leicestershire Partnership NHS Trust,24/02/20,Contract : Accomodation,Out of County Income - Inpateints Project,TURNING POINT,SI-TPS-00026408,47507.58
Department of Health,Leicestershire Partnership NHS Trust,24/02/20,Mobile Telephone Rental / Calls,Non Recurrent 2012/13,VODAFONE CORPORATE LTD,NU18106,48708.00
Department of Health,Leicestershire Partnership NHS Trust,24/02/20,WIP Project Not in BS - Information Technology,Work in Progress,DELL COMPUTERS,7402594528,39120.00
Department of Health,Leicestershire Partnership NHS Trust,24/02/20,Computer Hardware,Mental Health Facilitators - City & County,DELL COMPUTERS,7402595133,25428.00
Department of Health,Leicestershire Partnership NHS Trust,24/02/20,Landline Telephone Rental / Calls,Information Services,VIRGIN MEDIA BUSINESS,919266-113A,56161.31
Department of Health,Leicestershire Partnership NHS Trust,24/02/20,Computer Hardware,HIS External Recharge,BT GLOBAL SERVICES,526491,26265.60
Department of Health,Leicestershire Partnership NHS Trust,24/02/20,Computer Hardware,HIS External Recharge,BT GLOBAL SERVICES,526490,27187.20
Department of Health,Leicestershire Partnership NHS Trust,24/02/20,Network Costs - WAN Maint,HIS Infrastructure,VIRGIN MEDIA BUSINESS,262421-164,43321.20
Department of Health,Leicestershire Partnership NHS Trust,25/02/20,Leased / Hired Vehicles,360 Assurance - Internal Audit,AUTOMOTIVE LEASING LTD,506493098,5.00
Department of Health,Leicestershire Partnership NHS Trust,25/02/20,Leased / Hired Vehicles,Autism,AUTOMOTIVE LEASING LTD,506493098,2665.29
Department of Health,Leicestershire Partnership NHS Trust,25/02/20,Prep_ LT1y -Prepayments Lease Cars,Balance Sheet Collection,AUTOMOTIVE LEASING LTD,506493098,48476.01
Department of Health,Leicestershire Partnership NHS Trust,25/02/20,Trade_Drs_LT1y -Lease Cars Invoicing Contrl Ac.,Balance Sheet Collection,AUTOMOTIVE LEASING LTD,506493098,6414.27
Department of Health,Leicestershire Partnership NHS Trust,25/02/20,Leased / Hired Vehicles,Children's Speech Therapy,AUTOMOTIVE LEASING LTD,506493098,15.00
Department of Health,Leicestershire Partnership NHS Trust,25/02/20,Leased / Hired Vehicles,City Planned Care - East,AUTOMOTIVE LEASING LTD,506493098,89.49
Department of Health,Leicestershire Partnership NHS Trust,25/02/20,Leased / Hired Vehicles,City Planned Care - East - Therapy,AUTOMOTIVE LEASING LTD,506493098,10.00
Department of Health,Leicestershire Partnership NHS Trust,25/02/20,Leased / Hired Vehicles,County 0-19 Early Start HV Team,AUTOMOTIVE LEASING LTD,506493098,139.00
Department of Health,Leicestershire Partnership NHS Trust,25/02/20,Leased / Hired Vehicles,Countywide Falls Service,AUTOMOTIVE LEASING LTD,506493098,30.00
Department of Health,Leicestershire Partnership NHS Trust,25/02/20,Leased / Hired Vehicles,Crisis Resolution,AUTOMOTIVE LEASING LTD,506493098,60.76
Department of Health,Leicestershire Partnership NHS Trust,25/02/20,Leased / Hired Vehicles,Crisis Response and Home Treatment,AUTOMOTIVE LEASING LTD,506493098,5.00
Department of Health,Leicestershire Partnership NHS Trust,25/02/20,Leased / Hired Vehicles,Mill Lodge,AUTOMOTIVE LEASING LTD,506493098,89.66
Department of Health,Leicestershire Partnership NHS Trust,25/02/20,Leased / Hired Vehicles,PIER Team - Early Intervention Services,AUTOMOTIVE LEASING LTD,506493098,5.00
Department of Health,Leicestershire Partnership NHS Trust,25/02/20,Leased / Hired Vehicles,School Age Immunisation and Vaccinations,AUTOMOTIVE LEASING LTD,506493098,640.00
Department of Health,Leicestershire Partnership NHS Trust,25/02/20,Leased / Hired Vehicles,Speech & Language Therapy,AUTOMOTIVE LEASING LTD,506493098,5.00
Department of Health,Leicestershire Partnership NHS Trust,25/02/20,Leased / Hired Vehicles,West Leicestershire CMHT MHSOP,AUTOMOTIVE LEASING LTD,506493098,7.00
Department of Health,Leicestershire Partnership NHS Trust,25/02/20,Leased / Hired Vehicles,West Planned Care  - Hinckley Hub,AUTOMOTIVE LEASING LTD,506493098,5.00
Department of Health,Leicestershire Partnership NHS Trust,25/02/20,NURSE - BAND 2 - AGENCY,Beechwood Ward,HCL NURSING,HNSI0000296,380.35
Department of Health,Leicestershire Partnership NHS Trust,25/02/20,NURSE - BAND 5 - AGENCY,Beechwood Ward,HCL NURSING,HNSI0000296,903.12
Department of Health,Leicestershire Partnership NHS Trust,25/02/20,NURSE - BAND 5 - AGENCY,City Planned Care - East,HCL NURSING,HNSI0000296,12090.52
Department of Health,Leicestershire Partnership NHS Trust,25/02/20,NURSE - BAND 5 - AGENCY,City Planned Care - West,HCL NURSING,HNSI0000296,11100.14
Department of Health,Leicestershire Partnership NHS Trust,25/02/20,Nurse - Band 6 -Agency,City West CMHT MHSOP,HCL NURSING,HNSI0000296,3185.91
Department of Health,Leicestershire Partnership NHS Trust,25/02/20,NURSE - BAND 2 - AGENCY,Clarendon Ward,HCL NURSING,HNSI0000296,163.71
Department of Health,Leicestershire Partnership NHS Trust,25/02/20,NURSE - BAND 2 - AGENCY,Coalville Snibston Ward,HCL NURSING,HNSI0000296,328.12
Department of Health,Leicestershire Partnership NHS Trust,25/02/20,NURSE - BAND 5 - AGENCY,Coalville Snibston Ward,HCL NURSING,HNSI0000296,514.90
Department of Health,Leicestershire Partnership NHS Trust,25/02/20,NURSE - BAND 5 - AGENCY,Coalville Ward 2,HCL NURSING,HNSI0000296,1866.25
Department of Health,Leicestershire Partnership NHS Trust,25/02/20,NURSE - BAND 5 - AGENCY,Coleman Ward,HCL NURSING,HNSI0000296,302.58
Department of Health,Leicestershire Partnership NHS Trust,25/02/20,NURSE - BAND 2 - AGENCY,Dalgliesh Ward,HCL NURSING,HNSI0000296,211.93
Department of Health,Leicestershire Partnership NHS Trust,25/02/20,NURSE - BAND 5 - AGENCY,Dalgliesh Ward,HCL NURSING,HNSI0000296,514.90
Department of Health,Leicestershire Partnership NHS Trust,25/02/20,NURSE - BAND 5 - AGENCY,"East Planned Care - Oadby,Wigston & Harborough",HCL NURSING,HNSI0000296,5025.18
Department of Health,Leicestershire Partnership NHS Trust,25/02/20,NURSE - BAND 2 - AGENCY,Fielding Palmer Nursing,HCL NURSING,HNSI0000296,106.77
Department of Health,Leicestershire Partnership NHS Trust,25/02/20,NURSE - BAND 5 - AGENCY,Fielding Palmer Nursing,HCL NURSING,HNSI0000296,2807.65
Department of Health,Leicestershire Partnership NHS Trust,25/02/20,NURSE - BAND 2 - AGENCY,Gwendolen Ward,HCL NURSING,HNSI0000296,600.10
Department of Health,Leicestershire Partnership NHS Trust,25/02/20,NURSE - BAND 5 - AGENCY,Gwendolen Ward,HCL NURSING,HNSI0000296,302.58
Department of Health,Leicestershire Partnership NHS Trust,25/02/20,NURSE - BAND 2 - AGENCY,H&B Comm Hosp East Ward,HCL NURSING,HNSI0000296,466.09
Department of Health,Leicestershire Partnership NHS Trust,25/02/20,NURSE - BAND 5 - AGENCY,H&B Comm Hosp East Ward,HCL NURSING,HNSI0000296,449.57
Department of Health,Leicestershire Partnership NHS Trust,25/02/20,NURSE - BAND 2 - AGENCY,H&B Comm Hosp North Ward,HCL NURSING,HNSI0000296,2612.40
Department of Health,Leicestershire Partnership NHS Trust,25/02/20,NURSE - BAND 5 - AGENCY,Kirby Ward,HCL NURSING,HNSI0000296,312.72
Department of Health,Leicestershire Partnership NHS Trust,25/02/20,NURSE - BAND 5 - AGENCY,Rutland Ward Nursing,HCL NURSING,HNSI0000296,1610.32
Department of Health,Leicestershire Partnership NHS Trust,25/02/20,NURSE - BAND 2 - AGENCY,St Lukes Stroke Ward,HCL NURSING,HNSI0000296,980.68
Department of Health,Leicestershire Partnership NHS Trust,25/02/20,NURSE - BAND 5 - AGENCY,St Lukes Stroke Ward,HCL NURSING,HNSI0000296,319.43
Department of Health,Leicestershire Partnership NHS Trust,25/02/20,NURSE - BAND 5 - AGENCY,St Lukes Ward 3,HCL NURSING,HNSI0000296,3112.47
Department of Health,Leicestershire Partnership NHS Trust,25/02/20,NURSE - BAND 5 - AGENCY,West Planned Care  - Charnwood Hub,HCL NURSING,HNSI0000296,276.65
Department of Health,Leicestershire Partnership NHS Trust,25/02/20,NURSE - BAND 5 - AGENCY,West Planned Care  - Hinckley Hub,HCL NURSING,HNSI0000296,195.49
Department of Health,Leicestershire Partnership NHS Trust,25/02/20,Nurse - Band 6 -Agency,Adult City East CMHT - Merlyn Vaz,HCL NURSING,HNSI0000295,2437.42
Department of Health,Leicestershire Partnership NHS Trust,25/02/20,Nurse - Band 6 -Agency,Adult County Charnwood CMHT - Loughborough Base,HCL NURSING,HNSI0000295,1069.88
Department of Health,Leicestershire Partnership NHS Trust,25/02/20,Nurse - Band 6 -Agency,Adult County North West Leicestershire CMHT,HCL NURSING,HNSI0000295,855.90
Department of Health,Leicestershire Partnership NHS Trust,25/02/20,Nurse - Band 6 -Agency,Adult County West Leicestershire CMHT,HCL NURSING,HNSI0000295,1069.88
Department of Health,Leicestershire Partnership NHS Trust,25/02/20,NURSE - BAND 2 - AGENCY,Agnes Unit Management,HCL NURSING,HNSI0000295,746.91
Department of Health,Leicestershire Partnership NHS Trust,25/02/20,NURSE - BAND 5 - AGENCY,Agnes Unit Management,HCL NURSING,HNSI0000295,1001.26
Department of Health,Leicestershire Partnership NHS Trust,25/02/20,NURSE - BAND 2 - AGENCY,Ashby Ward (Bradgate Unit),HCL NURSING,HNSI0000295,211.93
Department of Health,Leicestershire Partnership NHS Trust,25/02/20,NURSE - BAND 5 - AGENCY,Ashby Ward (Bradgate Unit),HCL NURSING,HNSI0000295,1062.66
Department of Health,Leicestershire Partnership NHS Trust,25/02/20,Nurse - Band 6 -Agency,Assertive Outreach Services,HCL NURSING,HNSI0000295,1069.88
Department of Health,Leicestershire Partnership NHS Trust,25/02/20,NURSE - BAND 2 - AGENCY,Aston Ward (Bradgate Unit),HCL NURSING,HNSI0000295,164.85
Department of Health,Leicestershire Partnership NHS Trust,25/02/20,NURSE - BAND 5 - AGENCY,Aston Ward (Bradgate Unit),HCL NURSING,HNSI0000295,710.80
Department of Health,Leicestershire Partnership NHS Trust,25/02/20,NURSE - BAND 2 - AGENCY,Belvoir Psychiatric Intensive Care Unit,HCL NURSING,HNSI0000295,1660.48
Department of Health,Leicestershire Partnership NHS Trust,25/02/20,NURSE - BAND 5 - AGENCY,Belvoir Psychiatric Intensive Care Unit,HCL NURSING,HNSI0000295,3556.61
Department of Health,Leicestershire Partnership NHS Trust,25/02/20,Nurse - Band 6 -Agency,Crisis Resolution,HCL NURSING,HNSI0000295,5029.89
Department of Health,Leicestershire Partnership NHS Trust,25/02/20,NURSE - BAND 2 - AGENCY,Griffin Ward (HPC),HCL NURSING,HNSI0000295,878.32
Department of Health,Leicestershire Partnership NHS Trust,25/02/20,NURSE - BAND 5 - AGENCY,Griffin Ward (HPC),HCL NURSING,HNSI0000295,4565.25
Department of Health,Leicestershire Partnership NHS Trust,25/02/20,NURSE - BAND 2 - AGENCY,Heather Ward,HCL NURSING,HNSI0000295,220.57
Department of Health,Leicestershire Partnership NHS Trust,25/02/20,NURSE - BAND 5 - AGENCY,Heather Ward,HCL NURSING,HNSI0000295,2032.29
Department of Health,Leicestershire Partnership NHS Trust,25/02/20,Nurse - Band 6 -Agency,Leicestershire Psych-oncology Service,HCL NURSING,HNSI0000295,427.95
Department of Health,Leicestershire Partnership NHS Trust,25/02/20,Nurse - Band 6 -Agency,Mental Health Triage Team,HCL NURSING,HNSI0000295,1504.10
Department of Health,Leicestershire Partnership NHS Trust,25/02/20,NURSE - BAND 2 - AGENCY,Mill Lodge,HCL NURSING,HNSI0000295,180.21
Department of Health,Leicestershire Partnership NHS Trust,25/02/20,NURSE - BAND 5 - AGENCY,Stewart House,HCL NURSING,HNSI0000295,308.20
Department of Health,Leicestershire Partnership NHS Trust,25/02/20,NURSE - BAND 2 - AGENCY,Watermead Ward (Bradgate Unit),HCL NURSING,HNSI0000295,467.37
Department of Health,Leicestershire Partnership NHS Trust,25/02/20,NURSE - BAND 5 - AGENCY,Watermead Ward (Bradgate Unit),HCL NURSING,HNSI0000295,1329.40
Department of Health,Leicestershire Partnership NHS Trust,25/02/20,Landline Telephone Rental / Calls,"Beaumont Leys Health Centre (P94, LPT)",VIRGIN MEDIA BUSINESS,853083001/004/0220,452.24
Department of Health,Leicestershire Partnership NHS Trust,25/02/20,Landline Telephone Rental / Calls,Belgrave Health Centre (CHP),VIRGIN MEDIA BUSINESS,853083001/004/0220,473.18
Department of Health,Leicestershire Partnership NHS Trust,25/02/20,Landline Telephone Rental / Calls,"Bennion Centre (including Forest Grange Day Unit) (P8, LPT)",VIRGIN MEDIA BUSINESS,853083001/004/0220,7.74
Department of Health,Leicestershire Partnership NHS Trust,25/02/20,Landline Telephone Rental / Calls,"Bradgate Unit (including Glenvale day Unit) (P7, LPT)",VIRGIN MEDIA BUSINESS,853083001/004/0220,7729.23
Department of Health,Leicestershire Partnership NHS Trust,25/02/20,Landline Telephone Rental / Calls,Braunstone Health and Social Care Centre (Part) (PROPCO),VIRGIN MEDIA BUSINESS,853083001/004/0220,1310.05
Department of Health,Leicestershire Partnership NHS Trust,25/02/20,Landline Telephone Rental / Calls,Bridge Park Plaza - First Floor (LPT),VIRGIN MEDIA BUSINESS,853083001/004/0220,4360.44
Department of Health,Leicestershire Partnership NHS Trust,25/02/20,Landline Telephone Rental / Calls,"Coalville Community Hospital (P138, LPT)",VIRGIN MEDIA BUSINESS,853083001/004/0220,1512.53
Department of Health,Leicestershire Partnership NHS Trust,25/02/20,Landline Telephone Rental / Calls,"Coalville Health Centre (P121, LPT)",VIRGIN MEDIA BUSINESS,853083001/004/0220,372.73
Department of Health,Leicestershire Partnership NHS Trust,25/02/20,Landline Telephone Rental / Calls,County Hall,VIRGIN MEDIA BUSINESS,853083001/004/0220,1570.06
Department of Health,Leicestershire Partnership NHS Trust,25/02/20,Landline Telephone Rental / Calls,Estates & Facilities Central,VIRGIN MEDIA BUSINESS,853083001/004/0220,4814.18
Department of Health,Leicestershire Partnership NHS Trust,25/02/20,Landline Telephone Rental / Calls,"Evington Centre (P6, LPT)",VIRGIN MEDIA BUSINESS,853083001/004/0220,1632.33
Department of Health,Leicestershire Partnership NHS Trust,25/02/20,Landline Telephone Rental / Calls,HIS,VIRGIN MEDIA BUSINESS,853083001/004/0220,3122.90
Department of Health,Leicestershire Partnership NHS Trust,25/02/20,Landline Telephone Rental / Calls,"Hawthorne Centre - Coalville (P14, LPT)",VIRGIN MEDIA BUSINESS,853083001/004/0220,519.52
Department of Health,Leicestershire Partnership NHS Trust,25/02/20,Landline Telephone Rental / Calls,Hinckley & District Hospital (PROPCO),VIRGIN MEDIA BUSINESS,853083001/004/0220,1189.49
Department of Health,Leicestershire Partnership NHS Trust,25/02/20,Landline Telephone Rental / Calls,"Hinckley and Bosworth Community Hospital (Sunnyside) (P133, LPT)",VIRGIN MEDIA BUSINESS,853083001/004/0220,1075.52
Department of Health,Leicestershire Partnership NHS Trust,25/02/20,Landline Telephone Rental / Calls,Hood Park Leisure Centre Clinic,VIRGIN MEDIA BUSINESS,853083001/004/0220,98.00
Department of Health,Leicestershire Partnership NHS Trust,25/02/20,Landline Telephone Rental / Calls,"Hynca Lodge (P33, LPT)",VIRGIN MEDIA BUSINESS,853083001/004/0220,402.65
Department of Health,Leicestershire Partnership NHS Trust,25/02/20,Landline Telephone Rental / Calls,"Legion House, Ashby",VIRGIN MEDIA BUSINESS,853083001/004/0220,66.04
Department of Health,Leicestershire Partnership NHS Trust,25/02/20,Landline Telephone Rental / Calls,Loughborough Health Centre (PROPCO),VIRGIN MEDIA BUSINESS,853083001/004/0220,8.50
Department of Health,Leicestershire Partnership NHS Trust,25/02/20,Landline Telephone Rental / Calls,"Loughborough Hospital (P136, LPT)",VIRGIN MEDIA BUSINESS,853083001/004/0220,4836.12
Department of Health,Leicestershire Partnership NHS Trust,25/02/20,Landline Telephone Rental / Calls,Mawson House (LPT),VIRGIN MEDIA BUSINESS,853083001/004/0220,504.18
Department of Health,Leicestershire Partnership NHS Trust,25/02/20,Landline Telephone Rental / Calls,Melbourne Centre (Pt Grnd flr) (PROPCO),VIRGIN MEDIA BUSINESS,853083001/004/0220,6.45
Department of Health,Leicestershire Partnership NHS Trust,25/02/20,Landline Telephone Rental / Calls,Melton Mowbray Hospital (previously St. Mary's) (PROPCO),VIRGIN MEDIA BUSINESS,853083001/004/0220,1726.38
Department of Health,Leicestershire Partnership NHS Trust,25/02/20,Landline Telephone Rental / Calls,Merlyn Vaz Centre (CHP),VIRGIN MEDIA BUSINESS,853083001/004/0220,2254.71
Department of Health,Leicestershire Partnership NHS Trust,25/02/20,Landline Telephone Rental / Calls,"Mett Centre (P49, LPT)",VIRGIN MEDIA BUSINESS,853083001/004/0220,102.31
Department of Health,Leicestershire Partnership NHS Trust,25/02/20,Landline Telephone Rental / Calls,NSPCC Training Cente,VIRGIN MEDIA BUSINESS,853083001/004/0220,171.84
Department of Health,Leicestershire Partnership NHS Trust,25/02/20,Landline Telephone Rental / Calls,New Parks Health Centre (PROPCO),VIRGIN MEDIA BUSINESS,853083001/004/0220,1446.08
Department of Health,Leicestershire Partnership NHS Trust,25/02/20,Landline Telephone Rental / Calls,"OSL House (P54, LPT)",VIRGIN MEDIA BUSINESS,853083001/004/0220,3349.98
Department of Health,Leicestershire Partnership NHS Trust,25/02/20,Landline Telephone Rental / Calls,"Orchard Resource Centre (P15, LPT)",VIRGIN MEDIA BUSINESS,853083001/004/0220,566.60
Department of Health,Leicestershire Partnership NHS Trust,25/02/20,Landline Telephone Rental / Calls,Pasley Road Health Centre (PROPCO),VIRGIN MEDIA BUSINESS,853083001/004/0220,128.53
Department of Health,Leicestershire Partnership NHS Trust,25/02/20,Landline Telephone Rental / Calls,"Prince Philip House (P96, LPT)",VIRGIN MEDIA BUSINESS,853083001/004/0220,1678.70
Department of Health,Leicestershire Partnership NHS Trust,25/02/20,Landline Telephone Rental / Calls,Rushey Mead Health Centre (PROPCO),VIRGIN MEDIA BUSINESS,853083001/004/0220,79.58
Department of Health,Leicestershire Partnership NHS Trust,25/02/20,Landline Telephone Rental / Calls,"Shepshed Health Centre (P123, LPT)",VIRGIN MEDIA BUSINESS,853083001/004/0220,13.07
Department of Health,Leicestershire Partnership NHS Trust,25/02/20,Landline Telephone Rental / Calls,"Springfield Road Health Centre (P92, LPT)",VIRGIN MEDIA BUSINESS,853083001/004/0220,407.86
Department of Health,Leicestershire Partnership NHS Trust,25/02/20,Landline Telephone Rental / Calls,St Johns House (1st Floor) (PROPCO),VIRGIN MEDIA BUSINESS,853083001/004/0220,1522.95
Department of Health,Leicestershire Partnership NHS Trust,25/02/20,Landline Telephone Rental / Calls,St Peters Primary Care Centre (CHP),VIRGIN MEDIA BUSINESS,853083001/004/0220,2540.54
Department of Health,Leicestershire Partnership NHS Trust,25/02/20,Landline Telephone Rental / Calls,"Stewart House (P61, LPT)",VIRGIN MEDIA BUSINESS,853083001/004/0220,7.74
Department of Health,Leicestershire Partnership NHS Trust,25/02/20,Landline Telephone Rental / Calls,"Swithland House - London Road 352 (P44, LPT)",VIRGIN MEDIA BUSINESS,853083001/004/0220,390.89
Department of Health,Leicestershire Partnership NHS Trust,25/02/20,Landline Telephone Rental / Calls,"The Cedars (P19, LPT)",VIRGIN MEDIA BUSINESS,853083001/004/0220,630.17
Department of Health,Leicestershire Partnership NHS Trust,25/02/20,Landline Telephone Rental / Calls,"The Willows - Cordelia Close (P22, LPT)",VIRGIN MEDIA BUSINESS,853083001/004/0220,615.14
Department of Health,Leicestershire Partnership NHS Trust,25/02/20,Landline Telephone Rental / Calls,Uppingham Road Health Centre (PROPCO),VIRGIN MEDIA BUSINESS,853083001/004/0220,289.13
Department of Health,Leicestershire Partnership NHS Trust,25/02/20,Landline Telephone Rental / Calls,"Valentine Centre (P3, LPT)",VIRGIN MEDIA BUSINESS,853083001/004/0220,2057.86
Department of Health,Leicestershire Partnership NHS Trust,25/02/20,Landline Telephone Rental / Calls,Warren Park Way 25 (PROPCO),VIRGIN MEDIA BUSINESS,853083001/004/0220,839.98
Department of Health,Leicestershire Partnership NHS Trust,25/02/20,Landline Telephone Rental / Calls,"Westcotes Group -Westcotes House (P78, LPT)",VIRGIN MEDIA BUSINESS,853083001/004/0220,1637.86
Department of Health,Leicestershire Partnership NHS Trust,25/02/20,Landline Telephone Rental / Calls,Westcotes Health Centre (CHP),VIRGIN MEDIA BUSINESS,853083001/004/0220,781.29
Department of Health,Leicestershire Partnership NHS Trust,25/02/20,Landline Telephone Rental / Calls,"Winstanley Drive Health Centre (P8, LPT)",VIRGIN MEDIA BUSINESS,853083001/004/0220,451.16
Department of Health,Leicestershire Partnership NHS Trust,26/02/20,FP10'S,Adult City Central CMHT - St Peters,NHS BUS SERVICES AUTHORITY,1000063411,111.62
Department of Health,Leicestershire Partnership NHS Trust,26/02/20,FP10'S,Adult City Drugs,NHS BUS SERVICES AUTHORITY,1000063411,23096.29
Department of Health,Leicestershire Partnership NHS Trust,26/02/20,FP10'S,Adult County Drugs,NHS BUS SERVICES AUTHORITY,1000063411,32929.18
Department of Health,Leicestershire Partnership NHS Trust,26/02/20,FP10'S,CAMHS Outpatients,NHS BUS SERVICES AUTHORITY,1000063411,13162.55
Department of Health,Leicestershire Partnership NHS Trust,26/02/20,FP10'S,Children Services Medical,NHS BUS SERVICES AUTHORITY,1000063411,7299.81
Department of Health,Leicestershire Partnership NHS Trust,26/02/20,FP10'S,Dementia Related Drugs and Investigations,NHS BUS SERVICES AUTHORITY,1000063411,5183.79
Department of Health,Leicestershire Partnership NHS Trust,26/02/20,FP10'S,Eating Disorders Outpatient Service,NHS BUS SERVICES AUTHORITY,1000063411,202.47
Department of Health,Leicestershire Partnership NHS Trust,26/02/20,FP10'S,Forensic Services - Community,NHS BUS SERVICES AUTHORITY,1000063411,225.21
Department of Health,Leicestershire Partnership NHS Trust,26/02/20,FP10'S,LOROS Pharmacy,NHS BUS SERVICES AUTHORITY,1000063411,718.53
Department of Health,Leicestershire Partnership NHS Trust,26/02/20,FP10'S,Leicestershire Psych-oncology Service,NHS BUS SERVICES AUTHORITY,1000063411,361.43
Department of Health,Leicestershire Partnership NHS Trust,26/02/20,FP10'S,Lough Swithland Ward,NHS BUS SERVICES AUTHORITY,1000063411,8.48
Department of Health,Leicestershire Partnership NHS Trust,26/02/20,FP10'S,PIER Team - Early Intervention Services,NHS BUS SERVICES AUTHORITY,1000063411,10990.50
Department of Health,Leicestershire Partnership NHS Trust,26/02/20,FP10'S,Snr Med Staff (Inc Med Reps),NHS BUS SERVICES AUTHORITY,1000063411,3573.61
Department of Health,Leicestershire Partnership NHS Trust,26/02/20,WIP Project Not in BS - Information Technology,Work in Progress,DELL COMPUTERS,7402596284,28510.80
Department of Health,Leicestershire Partnership NHS Trust,26/02/20,WIP Project Not in BS - Information Technology,Work in Progress,INSPIRE CORNWALL CIC,I2002/LEI,38000.00
Department of Health,Leicestershire Partnership NHS Trust,28/02/20,CHP Estates Management,Belgrave Health Centre (CHP),COMM HLTH PARTNERSHIPS LTD,0060143218,9466.11
Department of Health,Leicestershire Partnership NHS Trust,28/02/20,CHP Estates Management,Merlyn Vaz Centre (CHP),COMM HLTH PARTNERSHIPS LTD,0060143218,57461.09
Department of Health,Leicestershire Partnership NHS Trust,28/02/20,CHP Estates Management,Westcotes Health Centre (CHP),COMM HLTH PARTNERSHIPS LTD,0060143218,12018.80
